bitfinex/quotes_BTCUSD_20220307
["timestamp","ask_amount","ask_price","bid_price","bid_amount"]
[1646637068828,0.00554052,38179.0,38178.0,0.39209899]
[1646637069029,0.00554052,38179.0,38178.0,0.44439899]
[1646637069228,0.00554052,38179.0,38178.0,0.54439899]
[1646637069475,0.00554052,38179.0,38178.0,0.54003219]
[1646637069876,0.00554052,38179.0,38178.0,0.5397702]
[1646637071079,0.00013446,38180.0,38179.0,2.464042]
[1646637071279,0.00013446,38180.0,38179.0,3.02796618]
[1646637071477,0.00013446,38180.0,38179.0,2.91273316]
[1646637071676,0.00013446,38180.0,38179.0,2.91299505]
[1646637071878,0.00053775,38187.0,38179.0,2.73672505]
[1646637072079,0.1735631,38188.0,38187.0,0.21867704]
[1646637072276,0.1735631,38188.0,38187.0,0.77360115]
[1646637073126,0.48945148,38196.0,38187.0,0.38622515]
[1646637073329,0.48945148,38196.0,38187.0,0.27097704]
[1646637073533,0.00021849,38189.0,38188.0,0.387359]
[1646637073729,0.00021849,38189.0,38182.0,0.004]
[1646637074328,0.15,38187.0,38182.0,0.004]
[1646637074528,0.23059343,38188.0,38182.0,0.004]
[1646637074729,0.00022871,38187.0,38184.0,0.1755665]
[1646637074931,0.00022871,38187.0,38185.0,0.387402]
[1646637075128,0.00022871,38187.0,38186.0,0.387388]
[1646637075527,0.15,38195.0,38184.0,0.04528075]
[1646637075929,0.00022871,38188.0,38184.0,0.04528075]
[1646637076126,0.00022871,38188.0,38186.0,0.06974408]
[1646637076528,0.00022871,38188.0,38185.0,0.19337382]
[1646637076728,0.19908348,38192.0,38185.0,0.19337382]
[1646637076992,0.00022871,38189.0,38185.0,0.19337382]
[1646637077388,0.00022871,38189.0,38185.0,0.26301894]
[1646637077789,0.00022871,38189.0,38186.0,0.00013369]
[1646637077988,0.43,38199.0,38186.0,0.05243369]
[1646637078187,0.00083691,38195.0,38192.0,0.20023211]
[1646637078789,0.00083691,38195.0,38187.0,0.23922555]
[1646637078790,0.1766875,38195.0,38187.0,0.23922555]
[1646637078989,0.1766875,38195.0,38186.0,0.05243369]
[1646637079187,0.32585059,38195.0,38186.0,0.05243369]
[1646637079387,0.00020925,38193.0,38186.0,0.05243369]
[1646637079786,0.18435282,38192.0,38186.0,0.05243369]
[1646637080640,0.00020926,38191.0,38186.0,0.00013369]
[1646637081641,0.18435282,38192.0,38186.0,0.00013369]
[1646637081840,0.00020383,38190.0,38186.0,0.00013369]
[1646637082841,0.78557,38191.0,38186.0,0.00013369]
[1646637083039,0.00020383,38190.0,38181.0,0.00413347]
[1646637083641,0.00020383,38190.0,38181.0,0.00013347]
[1646637084044,0.78557,38191.0,38181.0,0.00013347]
[1646637084374,0.00020383,38187.0,38185.0,0.20488047]
[1646637085176,0.78557,38191.0,38185.0,0.20488047]
[1646637085476,0.00020486,38188.0,38185.0,0.20488047]
[1646637086482,0.78557,38191.0,38185.0,0.20488047]
[1646637086678,0.00020486,38188.0,38185.0,0.20488047]
[1646637087677,0.78557,38191.0,38185.0,0.20488047]
[1646637087878,0.00020486,38188.0,38185.0,0.20488047]
[1646637088127,0.00020486,38188.0,38186.0,0.00013369]
[1646637088731,0.96237713,38191.0,38186.0,0.00013369]
[1646637088928,0.00020468,38189.0,38186.0,0.00013369]
[1646637090031,0.96237713,38191.0,38186.0,0.00013369]
[1646637090230,0.00020468,38189.0,38186.0,0.00013369]
[1646637091030,0.95758181,38191.0,38186.0,0.00013369]
[1646637091431,0.00020468,38189.0,38186.0,0.00013369]
[1646637092377,0.95758181,38191.0,38186.0,0.00013369]
[1646637092578,0.32627206,38190.0,38186.0,0.00013369]
[1646637092975,0.00010678,38189.0,38182.0,0.00013347]
[1646637094377,0.94038296,38191.0,38182.0,0.00013347]
[1646637094876,0.94024779,38191.0,38182.0,0.00013347]
[1646637095078,0.94038296,38191.0,38185.0,0.25665844]
[1646637095477,0.32481768,38190.0,38182.0,0.00013347]
[1646637096525,0.94046956,38191.0,38183.0,0.26341168]
[1646637097127,0.93524779,38191.0,38183.0,0.26341168]
[1646637097328,0.93524779,38191.0,38183.0,0.36341168]
[1646637097526,0.93546957,38191.0,38183.0,0.36341168]
[1646637097926,0.93546957,38191.0,38184.0,0.00012586]
[1646637098327,0.93524779,38191.0,38184.0,0.00012586]
[1646637098728,0.93546957,38191.0,38184.0,0.00012586]
[1646637098928,0.75866244,38191.0,38184.0,0.00012586]
[1646637099581,0.75844066,38191.0,38184.0,0.00012586]
[1646637099780,0.75865938,38191.0,38184.0,0.00012586]
[1646637100582,0.75865938,38191.0,38189.0,0.27951929]
[1646637100786,0.75844066,38191.0,38189.0,0.27951929]
[1646637100983,0.75844066,38191.0,38189.0,0.33181929]
[1646637101182,0.75865031,38191.0,38189.0,0.33181929]
[1646637101584,0.75365031,38191.0,38189.0,0.33181929]
[1646637101782,0.75365031,38191.0,38190.0,0.06734421]
[1646637101992,0.75344066,38191.0,38190.0,0.06734421]
[1646637103423,0.75344066,38191.0,38189.0,0.33181929]
[1646637105425,0.01197889,38185.0,38183.0,0.29604198]
[1646637105626,0.01197889,38185.0,38184.0,0.36620666]
[1646637106027,0.01197889,38185.0,38184.0,0.36920666]
[1646637106226,0.01197889,38185.0,38184.0,0.68847925]
[1646637106427,0.00021954,38192.0,38186.0,0.82657]
[1646637106627,0.00021954,38192.0,38190.0,0.13973801]
[1646637106876,0.3239101,38201.0,38191.0,0.2653459]
[1646637107082,0.00087393,38197.0,38195.0,0.28715221]
[1646637107276,0.00087393,38197.0,38195.0,0.33945221]
[1646637107983,0.15434048,38201.0,38195.0,0.33945221]
[1646637108476,0.0002185,38198.0,38195.0,0.33945221]
[1646637109279,0.42,38202.0,38195.0,0.33945221]
[1646637109479,0.00020896,38198.0,38195.0,0.33945221]
[1646637109686,0.00020896,38198.0,38195.0,0.0523]
[1646637110479,0.57230376,38201.0,38195.0,0.0523]
[1646637110726,0.00020903,38198.0,38195.0,0.32208292]
[1646637110927,0.00020903,38198.0,38195.0,0.0523]
[1646637111527,0.57230376,38201.0,38195.0,0.0523]
[1646637111728,0.35852711,38201.0,38195.0,0.0523]
[1646637111928,0.00020903,38198.0,38195.0,0.0523]
[1646637112927,0.00012013,38198.0,38197.0,0.00014784]
[1646637113130,0.00032318,38198.0,38197.0,0.00014784]
[1646637113929,0.32403023,38198.0,38197.0,0.00014784]
[1646637114131,0.545195,38198.0,38197.0,0.00014784]
[1646637114980,0.75861434,38198.0,38197.0,0.00014784]
[1646637115876,0.545195,38198.0,38197.0,0.00014784]
[1646637116078,0.81196917,38198.0,38197.0,0.00014784]
[1646637116277,1.59735917,38198.0,38197.0,0.00014784]
[1646637116477,1.480585,38198.0,38197.0,0.00014784]
[1646637116681,1.580585,38198.0,38197.0,0.00014784]
[1646637116876,1.65145511,38198.0,38197.0,0.00014784]
[1646637117277,1.97158411,38198.0,38197.0,0.00014784]
[1646637117878,1.97158411,38198.0,38184.0,0.11523141]
[1646637118138,0.18113044,38189.0,38184.0,0.11523141]
[1646637118337,0.18113044,38189.0,38184.0,0.00013141]
[1646637119339,0.32411451,38191.0,38184.0,0.00013141]
[1646637119537,0.00020441,38191.0,38184.0,0.00013141]
[1646637120141,0.2134626,38193.0,38184.0,0.00013141]
[1646637120337,0.00020428,38191.0,38184.0,0.00013141]
[1646637121339,0.3239101,38192.0,38184.0,0.00013141]
[1646637121541,0.39236924,38191.0,38184.0,0.00013141]
[1646637121739,0.392165,38189.0,38184.0,0.00013141]
[1646637121976,0.392165,38187.0,38184.0,0.00013141]
[1646637122377,0.44029268,38186.0,38184.0,0.00013141]
[1646637122578,0.392165,38185.0,38184.0,0.00013141]
[1646637122781,0.7160751,38185.0,38184.0,0.00013141]
[1646637122983,1.5014651,38185.0,38184.0,0.00013141]
[1646637123278,1.5014651,38185.0,38179.0,0.00013264]
[1646637123478,1.8149277,38185.0,38179.0,0.00013264]
[1646637123778,0.1,38183.0,38179.0,0.00013264]
[1646637123979,0.5610095,38180.0,38179.0,0.00013264]
[1646637124177,1.2781446,38180.0,38179.0,0.00013264]
[1646637124978,1.1093001,38180.0,38179.0,0.00013264]
[1646637125180,0.78539,38180.0,38179.0,0.00013264]
[1646637125833,0.77739,38180.0,38179.0,0.00013264]
[1646637127236,0.77539,38180.0,38179.0,0.00013264]
[1646637127433,1.0993001,38180.0,38179.0,0.00013264]
[1646637127936,1.10141906,38180.0,38178.0,0.00113343]
[1646637128136,0.77725829,38180.0,38178.0,0.00113343]
[1646637128940,0.77725829,38180.0,38179.0,0.2460502]
[1646637129135,0.77525829,38180.0,38179.0,0.2460502]
[1646637130391,0.77525829,38180.0,38179.0,0.5699603]
[1646637130597,0.77525829,38180.0,38179.0,0.68801121]
[1646637130598,0.06285743,38180.0,38179.0,0.68801121]
[1646637130793,0.06285743,38180.0,38179.0,0.7877493]
[1646637131392,0.00020445,38191.0,38179.0,1.00056208]
[1646637131598,0.00020445,38191.0,38185.0,0.05251454]
[1646637131792,0.00020445,38191.0,38186.0,0.32714112]
[1646637131993,0.2134626,38196.0,38186.0,0.32714112]
[1646637132292,0.00021382,38191.0,38186.0,0.32714112]
[1646637132494,0.00021382,38191.0,38184.0,0.63444714]
[1646637132692,0.00021382,38191.0,38185.0,0.1]
[1646637133129,0.21172715,38193.0,38186.0,0.45]
[1646637133324,0.21172715,38193.0,38187.0,0.25999337]
[1646637133526,0.00021382,38191.0,38187.0,0.25999337]
[1646637134526,0.20172715,38193.0,38187.0,0.25999337]
[1646637135527,0.20172715,38193.0,38186.0,0.27652325]
[1646637135928,0.20186078,38193.0,38186.0,0.27652325]
[1646637136129,0.20186078,38193.0,38186.0,0.43959772]
[1646637136979,0.20172715,38193.0,38186.0,0.43959772]
[1646637137181,0.20186077,38193.0,38186.0,0.43959772]
[1646637137582,0.20186077,38193.0,38186.0,0.27652325]
[1646637137979,0.20185556,38193.0,38189.0,0.00013892]
[1646637138282,0.20207417,38193.0,38189.0,0.00013892]
[1646637139079,0.3287269,38192.0,38189.0,0.00013892]
[1646637139480,0.392165,38191.0,38189.0,0.00013892]
[1646637139782,1.5064419,38190.0,38189.0,0.00013892]
[1646637140183,1.71485549,38190.0,38189.0,0.00013892]
[1646637140384,1.98168373,38190.0,38189.0,0.00013892]
[1646637140627,2.08168373,38190.0,38189.0,0.00013892]
[1646637141037,2.09476373,38190.0,38189.0,0.00013892]
[1646637142033,1.83093549,38190.0,38189.0,0.00013892]
[1646637142733,2.09777182,38190.0,38189.0,0.00013892]
[1646637142932,1.83093549,38190.0,38189.0,0.00013892]
[1646637143132,1.82805454,38190.0,38178.0,0.00114605]
[1646637143343,0.16749329,38180.0,38178.0,0.00114605]
[1646637143733,0.37197094,38180.0,38178.0,0.00114605]
[1646637143933,0.37397094,38180.0,38178.0,0.00114605]
[1646637144378,0.392165,38179.0,38178.0,0.00114605]
[1646637144579,0.7208919,38179.0,38178.0,0.00114605]
[1646637145377,0.392165,38179.0,38178.0,0.00114605]
[1646637145981,0.397165,38179.0,38178.0,0.00114605]
[1646637147378,0.392165,38179.0,38178.0,0.00114605]
[1646637147877,0.39228318,38179.0,38178.0,0.00114605]
[1646637148123,0.39728318,38179.0,38178.0,0.00114605]
[1646637149127,0.71297132,38179.0,38178.0,0.00114605]
[1646637149327,0.70797132,38179.0,38178.0,0.00114605]
[1646637149625,1.49352132,38179.0,38178.0,0.00114605]
[1646637150025,1.49852132,38179.0,38178.0,0.00114605]
[1646637150628,1.49352132,38179.0,38178.0,0.00114605]
[1646637151435,1.58852132,38179.0,38178.0,0.00114605]
[1646637151629,1.71300988,38179.0,38178.0,7.777e-05]
[1646637152081,1.71700988,38179.0,38178.0,7.777e-05]
[1646637152577,1.64482132,38179.0,38178.0,7.777e-05]
[1646637153179,1.6449395,38179.0,38175.0,0.00035192]
[1646637153479,0.1,38176.0,38175.0,0.00035192]
[1646637153684,1.277715,38176.0,38175.0,0.00014728]
[1646637153880,1.277715,38176.0,38175.0,0.00035175]
[1646637154479,1.330015,38176.0,38175.0,0.00035175]
[1646637154880,1.330015,38176.0,38175.0,0.00014728]
[1646637155280,1.325015,38176.0,38175.0,0.00014728]
[1646637155729,1.230015,38176.0,38175.0,0.00014728]
[1646637156132,0.17090632,38171.0,38170.0,1.96312175]
[1646637156335,1.34862532,38171.0,38170.0,1.96312175]
[1646637156529,1.177719,38171.0,38170.0,1.96312175]
[1646637156729,0.78555,38171.0,38170.0,1.96312175]
[1646637158732,0.784774,38171.0,38170.0,1.96312175]
[1646637162079,0.779774,38171.0,38170.0,1.96312175]
[1646637162880,0.77988316,38171.0,38170.0,1.96326452]
[1646637163736,0.77988316,38171.0,38170.0,2.06326452]
[1646637163938,0.1976,38186.0,38170.0,3.23187253]
[1646637163939,0.71347035,38186.0,38170.0,3.23187253]
[1646637164141,0.10023759,38187.0,38172.0,0.3701637]
[1646637164337,0.10023759,38187.0,38174.0,0.02627]
[1646637164338,0.00023759,38187.0,38174.0,0.02627]
[1646637164536,0.21270143,38188.0,38175.0,0.0523]
[1646637164737,0.00023762,38187.0,38176.0,0.3287269]
[1646637164939,0.00023762,38187.0,38179.0,0.18046795]
[1646637165136,0.00023762,38187.0,38179.0,0.23276795]
[1646637165340,0.00023762,38187.0,38180.0,0.3287269]
[1646637165538,0.00023762,38187.0,38179.0,0.23276795]
[1646637165740,0.54494374,38190.0,38179.0,0.0523]
[1646637165942,0.00022829,38187.0,38179.0,0.0523]
[1646637166340,0.00022829,38187.0,38175.0,0.11308]
[1646637166743,0.00022829,38187.0,38175.0,0.01308]
[1646637166744,0.18767537,38180.0,38175.0,0.01308]
[1646637166979,0.18767537,38180.0,38173.0,0.33343737]
[1646637167580,0.18767537,38180.0,38173.0,0.23343737]
[1646637167980,0.18767537,38180.0,38178.0,0.00014794]
[1646637170830,0.10022124,38187.0,38178.0,0.00014794]
[1646637171031,0.00022124,38187.0,38178.0,0.00014794]
[1646637171729,0.1,38187.0,38178.0,0.00014794]
[1646637171932,0.19995202,38186.0,38178.0,0.00014794]
[1646637172934,0.19995202,38186.0,38174.0,0.10014783]
[1646637173130,0.2502612,38184.0,38174.0,0.10014783]
[1646637174486,0.33197008,38183.0,38174.0,0.10014783]
[1646637174683,0.33197008,38183.0,38174.0,0.00014783]
[1646637174884,0.33197008,38183.0,38174.0,0.10014783]
[1646637175285,0.33197008,38183.0,38174.0,0.00014783]
[1646637175484,0.18566231,38178.0,38174.0,0.00014783]
[1646637175684,0.18566231,38178.0,38177.0,0.13973801]
[1646637176285,0.58839491,38178.0,38177.0,0.13973801]
[1646637176684,0.58839491,38178.0,38174.0,0.00014783]
[1646637176685,0.92036499,38178.0,38174.0,0.00014783]
[1646637176888,0.392169,38177.0,38174.0,0.00014783]
[1646637177090,0.33197008,38176.0,38174.0,0.00014783]
[1646637177287,0.392169,38175.0,38174.0,0.00014783]
[1646637177487,1.50997908,38175.0,38174.0,0.00014783]
[1646637177890,1.50997908,38175.0,38172.0,0.00037049]
[1646637178123,1.57852108,38175.0,38172.0,0.00037049]
[1646637178925,1.57852108,38175.0,38172.0,0.00014816]
[1646637179125,1.57852108,38175.0,38172.0,0.00037049]
[1646637179326,1.57552108,38175.0,38172.0,0.00037049]
[1646637179525,1.50997908,38175.0,38172.0,0.00037049]
[1646637180128,1.50997908,38175.0,38172.0,0.00014816]
[1646637180328,1.39708062,38175.0,38173.0,0.04884888]
[1646637180531,0.3281488,38174.0,38173.0,0.04884888]
[1646637180729,1.5061578,38174.0,38173.0,0.04884888]
[1646637182178,1.5111578,38174.0,38173.0,0.04884888]
[1646637183379,1.5061578,38174.0,38173.0,0.04884888]
[1646637183578,1.178009,38174.0,38173.0,0.04884888]
[1646637183782,0.78584,38174.0,38173.0,0.49481068]
[1646637183981,0.78584,38174.0,38173.0,0.16666188]
[1646637185838,0.78584,38174.0,38173.0,0.04884888]
[1646637186940,0.98332511,38174.0,38173.0,0.04884888]
[1646637187441,1.37549611,38174.0,38173.0,0.04884888]
[1646637187941,0.98332511,38174.0,38173.0,0.04899738]
[1646637188142,0.78884,38174.0,38173.0,0.04899738]
[1646637189376,0.78584,38174.0,38173.0,0.04899738]
[1646637195636,0.78584,38174.0,38173.0,0.03160311]
[1646637199381,0.78584,38174.0,38173.0,0.14941611]
[1646637199583,0.78584,38174.0,38173.0,0.03160311]
[1646637201939,0.78584,38174.0,38173.0,0.14941611]
[1646637204984,0.78584,38174.0,38173.0,0.03160311]
[1646637210146,0.78584,38174.0,38173.0,0.14941611]
[1646637210745,0.78584,38174.0,38173.0,0.36231281]
[1646637211543,0.78584,38174.0,38173.0,0.14941611]
[1646637211984,0.78584,38174.0,38173.0,0.20874937]
[1646637212189,0.07321286,38174.0,38173.0,0.20874937]
[1646637212490,0.07321286,38174.0,38173.0,0.53869373]
[1646637212785,0.07321286,38174.0,38173.0,0.80470971]
[1646637213188,0.07321286,38174.0,38173.0,0.53869373]
[1646637213986,0.07321286,38174.0,38173.0,0.59099373]
[1646637214184,0.07321286,38174.0,38173.0,0.9102129]
[1646637214386,0.21347035,38185.0,38173.0,0.59099373]
[1646637214588,0.19959748,38187.0,38177.0,0.38332022]
[1646637214589,0.21347035,38186.0,38177.0,0.38332022]
[1646637214788,0.00022211,38187.0,38179.0,0.21315666]
[1646637214987,0.21347035,38188.0,38180.0,0.66087502]
[1646637215188,0.00022214,38187.0,38180.0,0.66087502]
[1646637215389,0.00022214,38187.0,38180.0,0.88108205]
[1646637215635,0.00022214,38187.0,38182.0,0.117766]
[1646637215839,0.00022214,38187.0,38183.0,0.0523]
[1646637216042,0.40667035,38191.0,38184.0,0.44770236]
[1646637216241,0.1932,38191.0,38185.0,0.0523]
[1646637216437,0.00022216,38187.0,38186.0,0.44769036]
[1646637216637,0.00022216,38187.0,38186.0,0.49999036]
[1646637216838,0.00022216,38187.0,38186.0,0.170046]
[1646637217437,0.21347035,38194.0,38186.0,0.0523]
[1646637217638,0.00022215,38188.0,38187.0,0.11774]
[1646637218437,0.47141941,38194.0,38187.0,0.11774]
[1646637218641,0.25794906,38194.0,38184.0,0.54592991]
[1646637218841,0.00022215,38189.0,38185.0,0.117745]
[1646637219780,0.57206098,38196.0,38185.0,0.117745]
[1646637219979,0.00022215,38189.0,38186.0,0.32994436]
[1646637220180,0.00022215,38189.0,38187.0,0.117739]
[1646637220986,0.57206098,38196.0,38183.0,0.54310102]
[1646637221286,0.57206098,38196.0,38183.0,0.32994436]
[1646637221287,0.00022215,38190.0,38183.0,0.32994436]
[1646637221482,0.00022215,38190.0,38184.0,0.117747]
[1646637221983,0.00022215,38190.0,38186.0,0.28808495]
[1646637222188,0.27683794,38199.0,38186.0,0.28808495]
[1646637222189,0.01,38199.0,38188.0,0.117731]
[1646637222385,0.01,38199.0,38190.0,0.117723]
[1646637222386,0.00088846,38195.0,38190.0,0.117723]
[1646637222583,0.00088846,38195.0,38191.0,0.0523]
[1646637222785,0.00088846,38195.0,38192.0,0.170018]
[1646637223148,0.00088846,38195.0,38194.0,0.11771]
[1646637223352,0.00012041,38196.0,38194.0,0.17001]
[1646637223548,0.00012041,38196.0,38195.0,0.117705]
[1646637223749,0.00012041,38196.0,38194.0,0.0523]
[1646637224850,0.00012041,38196.0,38195.0,0.117704]
[1646637225550,0.00012041,38196.0,38195.0,0.09536028]
[1646637226153,0.00012041,38196.0,38191.0,0.0523]
[1646637226353,0.00012041,38196.0,38192.0,0.095372]
[1646637226752,0.00012041,38196.0,38191.0,0.0523]
[1646637226983,0.00012041,38196.0,38192.0,0.095375]
[1646637227183,0.00034255,38196.0,38192.0,0.095375]
[1646637227983,0.00034255,38196.0,38195.0,0.00014603]
[1646637227984,0.00022214,38196.0,38195.0,0.00014603]
[1646637228185,0.33336174,38198.0,38195.0,0.00014603]
[1646637228384,0.00022214,38196.0,38195.0,0.00014603]
[1646637229388,0.33336174,38198.0,38195.0,0.00014603]
[1646637229585,0.00022214,38197.0,38195.0,0.00014603]
[1646637230643,0.33336174,38198.0,38195.0,0.00014603]
[1646637230644,0.17376373,38198.0,38195.0,0.00014603]
[1646637230945,0.00022213,38198.0,38196.0,0.095361]
[1646637231146,0.00022213,38198.0,38197.0,0.32852164]
[1646637231344,0.00022213,38198.0,38197.0,0.147655]
[1646637231749,0.01,38199.0,38197.0,0.147655]
[1646637231946,0.01,38199.0,38198.0,0.095351]
[1646637232145,0.01022213,38199.0,38198.0,0.095351]
[1646637232944,0.01,38199.0,38198.0,0.095351]
[1646637234147,0.01,38199.0,38196.0,0.00014592]
[1646637234401,0.39215,38197.0,38196.0,0.00014592]
[1646637234599,0.01,38199.0,38196.0,0.00014592]
[1646637234600,0.39215,38198.0,38196.0,0.00014592]
[1646637234800,0.16552264,38197.0,38196.0,0.00014592]
[1646637234998,0.55767264,38197.0,38196.0,0.00014592]
[1646637235397,1.34308264,38197.0,38196.0,0.00014592]
[1646637235599,0.95093264,38197.0,38196.0,0.00014592]
[1646637236199,1.34308264,38197.0,38196.0,0.00014592]
[1646637236398,0.95393264,38197.0,38196.0,0.00014592]
[1646637236601,1.34608264,38197.0,38196.0,0.00014592]
[1646637236800,1.49838264,38197.0,38196.0,0.00014592]
[1646637237005,1.34594,38197.0,38196.0,6.158e-05]
[1646637237599,1.34320199,38197.0,38196.0,6.158e-05]
[1646637238239,0.1564622,38188.0,38183.0,0.32866745]
[1646637238538,0.1564622,38188.0,38183.0,0.00014581]
[1646637238742,0.39215,38187.0,38183.0,0.00014581]
[1646637238945,0.39215,38186.0,38183.0,0.00014581]
[1646637239139,0.00022215,38187.0,38183.0,0.00014581]
[1646637239440,0.39237215,38187.0,38183.0,0.00014581]
[1646637240242,0.39215,38187.0,38183.0,0.00014581]
[1646637240442,0.00022215,38187.0,38183.0,0.00014581]
[1646637241440,0.065512,38188.0,38183.0,0.00014581]
[1646637241645,0.00022215,38187.0,38183.0,0.00014581]
[1646637242690,0.1,38189.0,38183.0,0.00014581]
[1646637242889,0.00022216,38187.0,38183.0,0.00014581]
[1646637243088,0.00022216,38187.0,38178.0,0.12364247]
[1646637243089,0.00033997,38187.0,38178.0,0.12364247]
[1646637243892,0.00011781,38187.0,38178.0,0.12364247]
[1646637244093,0.00033996,38187.0,38178.0,0.12364247]
[1646637244393,0.00033996,38187.0,38178.0,0.35094277]
[1646637244593,0.00033996,38187.0,38179.0,0.42394564]
[1646637244798,0.00033996,38187.0,38179.0,0.52394564]
[1646637245095,0.00011781,38187.0,38179.0,0.52394564]
[1646637245293,0.00033996,38187.0,38180.0,0.01308]
[1646637245493,0.00033996,38187.0,38183.0,0.07267708]
[1646637245738,0.00033996,38187.0,38184.0,0.095411]
[1646637246139,0.00011781,38187.0,38184.0,0.095411]
[1646637246542,0.00033997,38187.0,38184.0,0.095411]
[1646637247344,0.00011781,38187.0,38184.0,0.095411]
[1646637247542,0.00033997,38187.0,38184.0,0.095411]
[1646637247742,0.00022216,38187.0,38184.0,0.095411]
[1646637248642,0.29466855,38195.0,38184.0,0.095411]
[1646637248844,0.00022216,38187.0,38185.0,0.27087826]
[1646637249044,0.00022216,38187.0,38183.0,0.32852164]
[1646637249045,0.00022216,38187.0,38186.0,0.095398]
[1646637249891,0.29466855,38195.0,38186.0,0.095398]
[1646637250086,0.00022215,38188.0,38183.0,0.78651991]
[1646637250291,0.00022215,38188.0,38184.0,0.095402]
[1646637250488,0.00022215,38188.0,38183.0,0.2154]
[1646637250699,0.00022215,38188.0,38184.0,0.09541]
[1646637250889,0.00022215,38188.0,38184.0,0.095409]
[1646637251093,0.065498,38193.0,38183.0,0.1154]
[1646637251292,0.00022215,38187.0,38183.0,0.1154]
[1646637251492,0.00022215,38187.0,38182.0,0.1]
[1646637251690,0.00022215,38187.0,38183.0,0.095413]
[1646637252292,0.15826398,38190.0,38181.0,0.10014292]
[1646637252495,0.00022216,38187.0,38182.0,0.66557915]
[1646637252692,0.00022216,38187.0,38182.0,0.095415]
[1646637252993,0.00033997,38187.0,38186.0,0.00014235]
[1646637253243,0.00033997,38187.0,38186.0,0.09554535]
[1646637253443,0.00011781,38187.0,38186.0,0.09554535]
[1646637255642,0.3103,38196.0,38195.0,0.0680131]
[1646637255845,0.78541,38196.0,38195.0,0.0680131]
[1646637256344,1.17756,38196.0,38195.0,0.0680131]
[1646637256544,0.78541,38196.0,38195.0,0.0680131]
[1646637256744,1.16650447,38196.0,38195.0,0.0680131]
[1646637257789,1.37997482,38196.0,38195.0,0.0680131]
[1646637258390,1.38497482,38196.0,38195.0,0.0680131]
[1646637259392,1.17150447,38196.0,38195.0,0.0680131]
[1646637259595,1.49404095,38196.0,38195.0,0.0680131]
[1646637260392,1.89119095,38196.0,38195.0,0.0680131]
[1646637260642,1.99119095,38196.0,38195.0,0.0680131]
[1646637260839,1.59904095,38196.0,38195.0,0.0680131]
[1646637261041,1.99119095,38196.0,38195.0,0.0680131]
[1646637262040,1.59904095,38196.0,38195.0,0.0680131]
[1646637262343,1.59404095,38196.0,38195.0,0.0680131]
[1646637262942,1.59404095,38196.0,38195.0,0.0681462]
[1646637263741,1.80759372,38196.0,38195.0,0.0681462]
[1646637264386,1.81559372,38196.0,38195.0,0.0681462]
[1646637264586,1.99419095,38196.0,38195.0,0.0681462]
[1646637264787,1.99419095,38196.0,38190.0,0.00022002]
[1646637264788,1.25,38195.0,38190.0,0.00022002]
[1646637264991,0.21357493,38191.0,38190.0,0.00022002]
[1646637265290,0.21357493,38191.0,38180.0,0.52855666]
[1646637265291,1.60509648,38191.0,38180.0,0.52855666]
[1646637265488,0.065522,38188.0,38180.0,0.3154]
[1646637265687,1.11294648,38187.0,38180.0,0.52855666]
[1646637265886,1.11294648,38187.0,38180.0,0.32845666]
[1646637266088,1.11294648,38187.0,38180.0,0.1153]
[1646637266296,1.36881971,38187.0,38180.0,0.1153]
[1646637268137,1.36881971,38187.0,38182.0,0.00022257]
[1646637268333,1.11294648,38187.0,38182.0,0.00022257]
[1646637269135,1.11294648,38187.0,38180.0,0.32845666]
[1646637269336,1.11294648,38187.0,38183.0,0.00022256]
[1646637270140,1.11294648,38187.0,38180.0,0.32845666]
[1646637270340,1.11294648,38187.0,38183.0,0.00022256]
[1646637270543,1.11494648,38187.0,38183.0,0.00022256]
[1646637271544,1.11494648,38187.0,38183.0,0.00022205]
[1646637271743,0.78741,38187.0,38183.0,0.00022205]
[1646637272199,0.78541,38187.0,38183.0,0.00022205]
[1646637272596,0.78541,38187.0,38180.0,0.32845666]
[1646637272799,0.78541,38187.0,38183.0,0.00022205]
[1646637272994,0.78541,38187.0,38185.0,0.00014162]
[1646637273595,0.39215,38186.0,38185.0,0.00014162]
[1646637273899,1.17756,38186.0,38185.0,0.00014162]
[1646637274497,0.78541,38186.0,38185.0,0.00014162]
[1646637277157,1.17756,38186.0,38185.0,0.00014162]
[1646637277959,0.78541,38186.0,38184.0,0.00036374]
[1646637278560,0.78541,38186.0,38184.0,0.00014162]
[1646637279787,0.39215,38185.0,38184.0,0.00014162]
[1646637279986,1.17756,38185.0,38184.0,0.00014162]
[1646637280188,0.78541,38185.0,38184.0,0.00014162]
[1646637282889,0.78541,38185.0,38183.0,0.00036384]
[1646637283356,0.78541,38185.0,38183.0,0.00014173]
[1646637285658,0.21534614,38185.0,38183.0,0.00014173]
[1646637286460,0.21834614,38185.0,38183.0,0.00014173]
[1646637287696,0.21534614,38185.0,38183.0,0.00014173]
[1646637287897,0.21534614,38185.0,38182.0,0.2135205]
[1646637288396,0.21934614,38185.0,38182.0,0.21352051]
[1646637289497,0.21934614,38185.0,38182.0,0.21329839]
[1646637289698,0.21934614,38185.0,38182.0,0.21352051]
[1646637289899,0.21534614,38185.0,38182.0,0.21352051]
[1646637290398,0.21734614,38185.0,38182.0,0.21352051]
[1646637290646,0.21734614,38185.0,38182.0,0.21329839]
[1646637290846,0.21734614,38185.0,38182.0,0.21352051]
[1646637291848,0.21734614,38185.0,38182.0,0.21329839]
[1646637292049,0.21734614,38185.0,38182.0,0.21352051]
[1646637292248,0.21534614,38185.0,38182.0,0.21352051]
[1646637293049,0.21534614,38185.0,38184.0,0.00014173]
[1646637296694,0.21534614,38185.0,38182.0,0.21315666]
[1646637296896,0.21534614,38185.0,38183.0,0.00022211]
[1646637297897,0.21534614,38185.0,38182.0,0.21315666]
[1646637298141,0.21534614,38185.0,38184.0,0.00014173]
[1646637298741,0.21534614,38185.0,38182.0,0.21315666]
[1646637299342,0.21534614,38185.0,38184.0,0.0999]
[1646637299544,0.21534614,38185.0,38180.0,0.26644583]
[1646637300441,0.21534614,38185.0,38181.0,0.0002375]
[1646637301246,0.21534614,38185.0,38182.0,0.095418]
[1646637301648,0.21534614,38185.0,38181.0,0.0002375]
[1646637301886,0.21534614,38185.0,38182.0,0.095418]
[1646637302285,0.21534614,38185.0,38181.0,0.26668333]
[1646637302486,0.21534614,38185.0,38179.0,0.095427]
[1646637302689,0.21534614,38185.0,38181.0,0.15892863]
[1646637302890,0.17684614,38185.0,38182.0,0.65524946]
[1646637303090,0.065507,38186.0,38185.0,0.03340147]
[1646637303288,0.065507,38186.0,38185.0,0.58623893]
[1646637303488,0.196514,38187.0,38185.0,0.9325358]
[1646637303688,0.196514,38187.0,38186.0,0.74656845]
[1646637303892,0.196514,38187.0,38186.0,0.40590445]
[1646637304090,0.196514,38187.0,38186.0,0.247703]
[1646637305290,0.196514,38187.0,38186.0,0.147703]
[1646637307140,0.196514,38187.0,38185.0,0.00720147]
[1646637307342,0.196514,38187.0,38186.0,0.0523]